[Event "Commonwealth Open 2019"]
[Site "Delhi"]
[Date "2019.07.02"]
[Round "4.7"]
[White "Saravana, Krishnan P."]
[Black "Karthikeyan, P.."]
[Result "1-0"]
[ECO "B13"]
[WhiteElo "2290"]
[BlackElo "2445"]
[Annotator "NA"]
[PlyCount "109"]
[EventDate "2019.06.30"]
[EventType "swiss"]
[EventCountry "IND"]
[SourceTitle "playchess.com"]
[Source "ChessBase"]
[SourceQuality "1"]
[TimeControl "5400+30"]

1. e4 {[%emt 0:00:00]} c6 {[%emt 0:00:00]} 2. d4 {[%emt 0:00:02]} d5 {[%emt 0:00:21]} 3. exd5 {[%emt 0:00:50]} cxd5 {[%emt 0:00:09]} 4. Bf4 {[%emt 0:00:05]} Nc6 {[%emt 0:00:27]} 5. c3 {[%emt 0:00:17]} Nf6 {[%emt 0:01:23]} 6. Nd2 {[%emt 0:00:25]} a6 {[%emt 0:04:31]} 7. Be2 {[%emt 0:06:07]} Bf5 {[%emt 0:01:27]} 8. Ngf3 {[%emt 0:02:45]} e6 {[%emt 0:00:30]} 9. O-O {[%emt 0:04:39]} Be7 {[%emt 0:00:38]} 10. Ne5 {[%emt 0:03:16]} Nxe5 {[%emt 0:00:56]} 11. Bxe5 {[%emt 0:02:15]} O-O {[%emt 0:00:20]} 12. Qb3 {[%emt 0:01:44]} Nd7 {[%emt 0:03:14]} 13. Bg3 {[%emt 0:02:10]} Qb6 {[%emt 0:17:21]} 14. Rfe1 {[%emt 0:00:23]} Rfc8 {[%emt 0:02:26]} 15. Bf3 {[%emt 0:12:58]} Bg5 {[%emt 0:06:05]} 16. Nf1 {[%emt 0:01:14]} Qc6 {[%emt 0:03:33]} 17. h4 {[%emt 0:03:24]} Bh6 {[%emt 0:01:55]} 18. Be2 {[%emt 0:04:08]} Kh8 {[%emt 0:03:25]} 19. Bh2 {[%emt 0:02:03]} e5 {[%emt 0:24:24]} 20. dxe5 {[%emt 0:09:13]} Nc5 {[%emt 0:01:56]} 21. Qd1 {[%emt 0:00:24]} g6 {[%emt 0:01:48]} 22. g4 {[%emt 0:10:09]} Be6 {[%emt 0:01:39]} 23. g5 {[%emt 0:05:50]} Bf8 {[%emt 0:01:15]} 24. Bf3 {[%emt 0:01:50]} Qb6 {[%emt 0:06:40]} 25. Re2 {[%emt 0:01:21]} Rd8 {[%emt 0:03:13]} 26. Bf4 {[%emt 0:01:23]} Ne4 {[%emt 0:03:47]} 27. Be3 {[%emt 0:00:14]} Qc7 {[%emt 0:01:42]} 28. Nh2 {[%emt 0:02:45]} Bg7 {[%emt 0:00:30]} 29. Bd4 {[%emt 0:01:35]} Kg8 {[%emt 0:01:38]} 30. Bg4 {[%emt 0:00:59]} Qe7 {[%emt 0:03:05]} 31. Kg2 {[%emt 0:02:21]} h5 {[%emt 0:01:08]} 32. Bxe6 {[%emt 0:00:51]} fxe6 {[%emt 0:00:39]} 33. Qd3 {[%emt 0:00:57]} Kh7 {[%emt 0:02:45]} 34. b4 {[%emt 0:00:07]} b6 {[%emt 0:01:29]} 35. f3 {[%emt 0:00:24]} Nc5 {[%emt 0:00:05]} 36. bxc5 {[%emt 0:00:05]} bxc5 {[%emt 0:00:03]} 37. Bf2 {[%emt 0:00:14]} Rab8 {[%emt 0:00:21]} 38. Nf1 {[%emt 0:00:48]} Rf8 {[%emt 0:00:27]} 39. Bg3 {[%emt 0:01:02]} c4 {[%emt 0:00:40]} 40. Qc2 {[%emt 0:00:42]} Qa3 {[%emt 0:00:33]} 41. Qc1 {[%emt 0:00:34]} Qa4 {[%emt 0:00:36]} 42. Nd2 {[%emt 0:00:24]} Rf7 {[%emt 0:00:34]} 43. f4 {[%emt 0:00:11]} Rfb7 {[%emt 0:00:27]} 44. Nf3 {[%emt 0:00:09]} Bf8 {[%emt 0:00:15]} 45. Nd4 {[%emt 0:00:28]} Ba3 {[%emt 0:00:17]} 46. Qd1 {[%emt 0:00:17]} Qa5 {[%emt 0:00:35]} 47. Be1 {[%emt 0:01:53]} Rb6 {[%emt 0:00:16]} 48. Rc2 {[%emt 0:02:40]} Kg7 {[%emt 0:00:26]} 49. f5 {[%emt 0:00:24]} exf5 {[%emt 0:00:20]} 50. e6 {[%emt 0:00:46]} Kh7 {[%emt 0:00:20]} 51. Bg3 {[%emt 0:00:12]} Re8 {[%emt 0:00:08]} 52. Qf3 {[%emt 0:00:15]} Rb2 {[%emt 0:00:32]} 53. Re1 {[%emt 0:00:56]} Rxc2+ {[%emt 0:00:19]} 54. Nxc2 {[%emt 0:00:06]} Bb2 {[%emt 0:00:02]} 55. Nb4 {[%emt 0:00:21]} 1-0

[Event "Commonwealth Open 2019"]
[Site "Delhi"]
[Date "2019.07.02"]
[Round "4.8"]
[White "Laxman, R.R."]
[Black "Vaishali, R."]
[Result "1-0"]
[ECO "A43"]
[WhiteElo "2437"]
[BlackElo "2338"]
[Annotator "NA"]
[PlyCount "85"]
[EventDate "2019.06.30"]
[EventType "swiss"]
[EventCountry "IND"]
[SourceTitle "playchess.com"]
[Source "ChessBase"]
[SourceQuality "1"]
[TimeControl "5400+30"]

1. d4 {[%emt 0:00:00]} Nf6 {[%emt 0:00:07]} 2. Nf3 {[%emt 0:00:00]} c5 {[%emt 0:00:17]} 3. d5 {[%emt 0:00:00]} g6 {[%emt 0:00:20]} 4. Nc3 {[%emt 0:00:00]} Bg7 {[%emt 0:00:06]} 5. e4 {[%emt 0:02:26]} d6 {[%emt 0:00:06]} 6. Bb5+ {[%emt 0:00:32]} Bd7 {[%emt 0:00:08]} 7. a4 {[%emt 0:00:15]} O-O {[%emt 0:00:13]} 8. h3 {[%emt 0:02:40]} Bxb5 {[%emt 0:01:33]} 9. axb5 {[%emt 0:04:30]} Nbd7 {[%emt 0:00:05]} 10. O-O {[%emt 0:00:18]} Nb6 {[%emt 0:01:05]} 11. Bf4 {[%emt 0:09:31]} Ne8 {[%emt 0:11:54]} 12. Qd2 {[%emt 0:03:41]} Nc7 {[%emt 0:10:48]} 13. Bh6 {[%emt 0:00:44]} Qd7 {[%emt 0:02:29]} 14. Bxg7 {[%emt 0:00:49]} Kxg7 {[%emt 0:00:03]} 15. Qd3 {[%emt 0:01:21]} Rfe8 {[%emt 0:13:06]} 16. Rfd1 {[%emt 0:01:59]} Red8 {[%emt 0:11:37]} 17. Nh2 {[%emt 0:03:53]} e6 {[%emt 0:08:44]} 18. Ng4 {[%emt 0:01:04]} h5 {[%emt 0:01:55]} 19. dxe6 {[%emt 0:03:16]} Nxe6 {[%emt 0:04:17]} 20. Ne3 {[%emt 0:02:30]} Nd4 21. Ra5 {[%emt 0:00:34]} Re8 {[%emt 0:12:20]} 22. Rda1 {[%emt 0:04:15]} Re5 {[%emt 0:02:15]} 23. f4 {[%emt 0:03:24]} Ree8 {[%emt 0:01:01]} 24. f5 {[%emt 0:00:30]} Qe7 {[%emt 0:03:27]} 25. Ned5 {[%emt 0:04:24]} Nxd5 {[%emt 0:03:58]} 26. Nxd5 {[%emt 0:00:02]} Qxe4 {[%emt 0:01:32]} 27. f6+ {[%emt 0:00:04]} Kh7 {[%emt 0:00:28]} 28. Qxe4 {[%emt 0:00:05]} Rxe4 {[%emt 0:00:04]} 29. Rxa7 {[%emt 0:00:44]} Rxa7 {[%emt 0:06:14]} 30. Rxa7 {[%emt 0:00:08]} Re1+ {[%emt 0:00:26]} 31. Kf2 {[%emt 0:00:23]} Re2+ {[%emt 0:00:21]} 32. Kf1 {[%emt 0:00:07]} Rxc2 {[%emt 0:00:24]} 33. Rxb7 {[%emt 0:00:02]} Kg8 {[%emt 0:02:44]} 34. b6 {[%emt 0:01:48]} Rxb2 {[%emt 0:00:55]} 35. Rb8+ {[%emt 0:01:13]} Kh7 {[%emt 0:00:01]} 36. Rf8 {[%emt 0:00:13]} c4 {[%emt 0:01:04]} 37. Rxf7+ {[%emt 0:00:05]} Kh6 {[%emt 0:00:04]} 38. Rc7 {[%emt 0:00:52]} Rb5 {[%emt 0:00:48]} 39. b7 {[%emt 0:01:12]} Ne6 {[%emt 0:00:43]} 40. f7 {[%emt 0:00:33]} Rb1+ {[%emt 0:01:30]} 41. Kf2 {[%emt 0:00:06]} Rb2+ {[%emt 0:00:06]} 42. Kg1 {[%emt 0:00:13]} Kg7 {[%emt 0:00:25]} 43. f8=Q+ {[%emt 0:00:06]} 1-0

[Event "Commonwealth Open 2019"]
[Site "Delhi"]
[Date "2019.07.02"]
[Round "4.9"]
[White "Srihari L R"]
[Black "Narayanan.S.L"]
[Result "0-1"]
[ECO "D37"]
[WhiteElo "2200"]
[BlackElo "2603"]
[Annotator "ChessBase"]
[PlyCount "104"]
[EventDate "2019.06.30"]
[EventType "swiss"]
[EventCountry "IND"]
[SourceTitle "playchess.com"]
[Source "ChessBase"]
[SourceQuality "1"]
[TimeControl "5400+30"]

1. d4 {[%emt 0:00:00]} Nf6 {[%emt 0:00:00]} 2. c4 {[%emt 0:00:01]} e6 {[%emt 0:00:00]} 3. Nf3 {[%emt 0:00:04]} d5 {[%emt 0:00:00]} 4. Nc3 {[%emt 0:00:05]} dxc4 {[%emt 0:00:00]} 5. e3 {[%emt 0:01:56]} a6 {[%emt 0:00:00]} 6. a4 {[%emt 0:00:38]} b6 {[%emt 0:00:02]} 7. Bxc4 {[%emt 0:00:57]} Bb7 {[%emt 0:00:30]} 8. O-O {[%emt 0:01:31]} Bb4 {[%emt 0:00:08]} 9. Qe2 {[%emt 0:10:02]} Nbd7 {[%emt 0:02:29]} 10. Rd1 {[%emt 0:01:04]} O-O {[%emt 0:00:06]} 11. Bd2 {[%emt 0:09:56]} Qe7 {[%emt 0:05:27]} 12. Bd3 {[%emt 0:09:56]} c5 {[%emt 0:08:10]} 13. Ne5 {[%emt 0:05:03]} Rfd8 {[%emt 0:09:34]} 14. Rac1 {[%emt 0:18:35]} Qd6 {[%emt 0:23:12]} 15. f4 {[%emt 0:05:26]} cxd4 {[%emt 0:00:32]} 16. Nc4 {[%emt 0:05:51]} Qe7 {[%emt 0:03:00]} 17. exd4 {[%emt 0:00:11]} g6 {[%emt 0:00:24]} 18. Ne3 {[%emt 0:09:42]} Nh5 {[%emt 0:00:30]} 19. Nc2 {[%emt 0:01:15]} Bd6 {[%emt 0:01:04]} 20. Rf1 {[%emt 0:00:10]} Ndf6 {[%emt 0:01:18]} 21. Ne4 {[%emt 0:08:33]} Nxe4 {[%emt 0:01:21]} 22. Bxe4 {[%emt 0:00:01]} Bxe4 {[%emt 0:00:23]} 23. Qxe4 {[%emt 0:00:02]} Rac8 {[%emt 0:02:49]} 24. g3 {[%emt 0:03:33]} Nf6 {[%emt 0:02:35]} 25. Qe2 {[%emt 0:01:45]} Qb7 {[%emt 0:00:25]} 26. Ne3 {[%emt 0:00:14]} b5 {[%emt 0:05:26]} 27. axb5 {[%emt 0:01:17]} axb5 {[%emt 0:02:57]} 28. Rxc8 {[%emt 0:00:04]} Rxc8 {[%emt 0:00:08]} 29. Rc1 {[%emt 0:00:18]} Rd8 {[%emt 0:01:48]} 30. Ba5 {[%emt 0:03:06]} Rd7 {[%emt 0:02:02]} 31. Be1 {[%emt 0:03:38]} h5 {[%emt 0:06:35]} 32. Rd1 {[%emt 0:00:23]} Bb8 {[%emt 0:01:03]} 33. Bf2 {[%emt 0:00:38]} Ba7 {[%emt 0:00:17]} 34. Nc2 {[%emt 0:00:33]} b4 {[%emt 0:01:24]} 35. b3 {[%emt 0:00:25]} Nd5 {[%emt 0:04:33]} 36. Ra1 {[%emt 0:00:34]} Rc7 {[%emt 0:00:42]} 37. Ne3 {[%emt 0:00:30]} Bxd4 {[%emt 0:00:41]} 38. Nxd5 {[%emt 0:00:07]} Qxd5 {[%emt 0:00:06]} 39. Rd1 {[%emt 0:00:37]} Bxf2+ {[%emt 0:00:09]} 40. Kxf2 {[%emt 0:00:03]} Qxb3 {[%emt 0:00:38]} 41. Rd8+ {[%emt 0:00:08]} Kh7 {[%emt 0:00:06]} 42. Rh8+ {[%emt 0:00:05]} Kxh8 {[%emt 0:00:04]} 43. Qe5+ {[%emt 0:00:04]} Kg8 {[%emt 0:00:23]} 44. Qxc7 {[%emt 0:00:05]} Qb2+ {[%emt 0:00:43]} 45. Kg1 {[%emt 0:00:20]} b3 {[%emt 0:00:29]} 46. Qb8+ {[%emt 0:00:08]} Kg7 {[%emt 0:00:06]} 47. Qb4 {[%emt 0:00:50]} Qa1+ {[%emt 0:00:37]} 48. Kg2 {[%emt 0:00:05]} b2 {[%emt 0:00:15]} 49. Qd4+ {[%emt 0:00:03]} Kh7 {[%emt 0:00:07]} 50. Qf6 {[%emt 0:00:12]} b1=Q {[%emt 0:00:18]} 51. Qxf7+ {[%emt 0:00:06]} Qg7 {[%emt 0:00:04]} 52. Qxe6 {[%emt 0:00:07]} Qgb7+ {[%emt 0:00:20]} 0-1

[Event "Commonwealth Open 2019"]
[Site "Delhi"]
[Date "2019.07.02"]
[Round "4.10"]
[White "Mohota, Nisha"]
[Black "Lalith, Babu M R"]
[Result "0-1"]
[ECO "C50"]
[WhiteElo "2221"]
[BlackElo "2571"]
[Annotator "ChessBase"]
[PlyCount "112"]
[EventDate "2019.06.30"]
[EventType "swiss"]
[EventCountry "IND"]
[SourceTitle "playchess.com"]
[Source "ChessBase"]
[SourceQuality "1"]
[TimeControl "5400+30"]

1. e4 {[%emt 0:00:00]} e5 {[%emt 0:00:00]} 2. Nf3 {[%emt 0:00:00]} Nc6 {[%emt 0:00:00]} 3. Bc4 {[%emt 0:00:04]} Bc5 {[%emt 0:00:08]} 4. O-O {[%emt 0:00:16]} Nf6 {[%emt 0:00:13]} 5. d3 {[%emt 0:00:05]} d6 {[%emt 0:00:46]} 6. c3 {[%emt 0:00:18]} a6 {[%emt 0:00:40]} 7. a4 {[%emt 0:00:06]} Ba7 {[%emt 0:00:11]} 8. h3 {[%emt 0:01:22]} h6 {[%emt 0:07:24]} 9. Re1 {[%emt 0:00:24]} g5 {[%emt 0:03:56]} 10. Be3 {[%emt 0:14:34]} Bxe3 {[%emt 0:08:15]} 11. fxe3 {[%emt 0:02:35]} g4 {[%emt 0:00:49]} 12. hxg4 {[%emt 0:01:32]} Bxg4 {[%emt 0:08:52]} 13. Rf1 {[%emt 0:00:37]} Qe7 {[%emt 0:01:38]} 14. Qe1 {[%emt 0:01:49]} Rg8 {[%emt 0:03:43]} 15. Qh4 {[%emt 0:10:47]} Rg6 {[%emt 0:02:55]} 16. Nh2 {[%emt 0:09:04]} Be6 {[%emt 0:00:41]} 17. Bxe6 {[%emt 0:12:56]} fxe6 {[%emt 0:04:23]} 18. Nd2 {[%emt 0:02:15]} O-O-O {[%emt 0:00:58]} 19. Rf2 {[%emt 0:00:45]} Rdg8 {[%emt 0:00:45]} 20. Ndf1 {[%emt 0:05:57]} Ng4 {[%emt 0:04:06]} 21. Qxe7 {[%emt 0:00:12]} Nxf2 {[%emt 0:00:22]} 22. Qxe6+ {[%emt 0:00:02]} Rxe6 {[%emt 0:00:07]} 23. Kxf2 {[%emt 0:00:03]} Reg6 {[%emt 0:02:35]} 24. g3 {[%emt 0:01:42]} Rf6+ {[%emt 0:00:20]} 25. Nf3 {[%emt 0:00:38]} Nd8 {[%emt 0:00:20]} 26. N1d2 {[%emt 0:01:27]} Ne6 {[%emt 0:00:22]} 27. Kg2 {[%emt 0:05:59]} Nc5 {[%emt 0:11:06]} 28. d4 {[%emt 0:02:23]} exd4 {[%emt 0:00:13]} 29. cxd4 {[%emt 0:03:37]} Nd7 {[%emt 0:00:14]} 30. Nh4 {[%emt 0:01:35]} Rgf8 {[%emt 0:01:16]} 31. Nhf3 {[%emt 0:11:03]} Re6 {[%emt 0:05:34]} 32. Rh1 {[%emt 0:01:20]} Rfe8 {[%emt 0:00:03]} 33. b3 {[%emt 0:05:29]} Nf6 {[%emt 0:00:34]} 34. Rxh6 {[%emt 0:03:12]} Nxe4 {[%emt 0:00:16]} 35. Rxe6 {[%emt 0:00:04]} Rxe6 {[%emt 0:00:03]} 36. Nxe4 {[%emt 0:00:35]} Rxe4 {[%emt 0:00:03]} 37. Kf2 {[%emt 0:00:04]} Kd7 {[%emt 0:00:22]} 38. Ne5+ {[%emt 0:01:40]} Ke6 {[%emt 0:04:01]} 39. Kf3 {[%emt 0:00:14]} Kd5 {[%emt 0:00:06]} 40. Ng6 {[%emt 0:01:05]} Re8 {[%emt 0:00:06]} 41. Nf4+ {[%emt 0:00:22]} Kc6 {[%emt 0:00:04]} 42. e4 {[%emt 0:01:12]} Kd7 {[%emt 0:00:50]} 43. g4 {[%emt 0:00:49]} Rg8 {[%emt 0:00:51]} 44. d5 {[%emt 0:00:19]} Ke7 {[%emt 0:00:53]} 45. Ne6 {[%emt 0:00:25]} Rh8 {[%emt 0:00:03]} 46. Nd4 {[%emt 0:01:26]} Rh3+ {[%emt 0:00:27]} 47. Kf4 {[%emt 0:00:06]} Rd3 {[%emt 0:00:03]} 48. Nf5+ {[%emt 0:00:15]} Kf7 {[%emt 0:00:10]} 49. g5 {[%emt 0:00:57]} Rxb3 {[%emt 0:00:04]} 50. Nh4 {[%emt 0:00:34]} b5 {[%emt 0:00:24]} 51. axb5 {[%emt 0:00:04]} axb5 {[%emt 0:00:02]} 52. Kg4 {[%emt 0:00:52]} b4 {[%emt 0:00:07]} 53. Kf5 {[%emt 0:00:37]} Rh3 {[%emt 0:00:12]} 54. g6+ {[%emt 0:00:10]} Kg7 {[%emt 0:00:04]} 55. Ng2 {[%emt 0:00:16]} b3 {[%emt 0:00:04]} 56. Nf4 {[%emt 0:00:06]} Rf3 {[%emt 0:00:05]} 0-1

[Event "Commonwealth Open 2019"]
[Site "Delhi"]
[Date "2019.07.02"]
[Round "4.11"]
[White "Deepan, Chakkravarthy J."]
[Black "Varshini, V."]
[Result "1-0"]
[ECO "E06"]
[WhiteElo "2557"]
[BlackElo "2087"]
[Annotator "ChessBase"]
[PlyCount "83"]
[EventDate "2019.06.30"]
[EventType "swiss"]
[EventCountry "IND"]
[SourceTitle "playchess.com"]
[Source "ChessBase"]
[SourceQuality "1"]
[TimeControl "5400+30"]

1. d4 {[%emt 0:02:29]} d5 {[%emt 0:00:00]} 2. c4 {[%emt 0:00:07]} e6 {[%emt 0:00:00]} 3. Nf3 {[%emt 0:00:06]} Nf6 {[%emt 0:00:03]} 4. g3 {[%emt 0:00:07]} Be7 {[%emt 0:00:17]} 5. Bg2 {[%emt 0:00:06]} O-O {[%emt 0:00:08]} 6. O-O {[%emt 0:00:04]} dxc4 {[%emt 0:01:11]} 7. Qc2 {[%emt 0:00:10]} a6 {[%emt 0:00:13]} 8. a4 {[%emt 0:00:42]} Bd7 {[%emt 0:01:11]} 9. Qxc4 {[%emt 0:00:08]} Bc6 {[%emt 0:01:43]} 10. Bg5 {[%emt 0:00:07]} Nbd7 {[%emt 0:04:12]} 11. Nc3 {[%emt 0:00:27]} h6 {[%emt 0:03:39]} 12. Bxf6 {[%emt 0:00:06]} Nxf6 {[%emt 0:00:09]} 13. a5 {[%emt 0:00:07]} Rc8 {[%emt 0:09:10]} 14. Rfd1 {[%emt 0:01:47]} Bd5 {[%emt 0:08:23]} 15. Qd3 {[%emt 0:07:06]} c5 {[%emt 0:04:02]} 16. e4 {[%emt 0:07:38]} Bb3 {[%emt 0:02:08]} 17. Rdc1 {[%emt 0:00:03]} cxd4 {[%emt 0:10:19]} 18. Qxd4 {[%emt 0:10:02]} Bc5 {[%emt 0:03:07]} 19. Qxd8 {[%emt 0:00:03]} Rfxd8 {[%emt 0:00:09]} 20. e5 {[%emt 0:00:03]} Ne8 {[%emt 0:04:45]} 21. Ne1 {[%emt 0:03:59]} Rc7 {[%emt 0:05:52]} 22. Ne4 {[%emt 0:07:01]} Bb4 {[%emt 0:09:25]} 23. Rxc7 {[%emt 0:04:41]} Nxc7 {[%emt 0:00:07]} 24. Nd6 {[%emt 0:00:02]} f6 {[%emt 0:11:45]} 25. Nxb7 {[%emt 0:11:09]} Rd2 {[%emt 0:00:17]} 26. Rc1 {[%emt 0:00:54]} Nb5 {[%emt 0:04:54]} 27. h4 {[%emt 0:20:43]} Nd4 {[%emt 0:07:50]} 28. Rc8+ {[%emt 0:00:16]} Kh7 {[%emt 0:00:40]} 29. Nd3 {[%emt 0:02:03]} Rd1+ {[%emt 0:04:27]} 30. Kh2 {[%emt 0:00:09]} Rxd3 {[%emt 0:01:53]} 31. Be4+ {[%emt 0:00:33]} f5 {[%emt 0:00:03]} 32. Bxd3 {[%emt 0:00:59]} Nf3+ {[%emt 0:00:05]} 33. Kh1 {[%emt 0:00:27]} Bd5 {[%emt 0:01:06]} 34. Bxa6 {[%emt 0:00:05]} Be1 {[%emt 0:02:42]} 35. Kg2 {[%emt 0:00:52]} Nd2+ {[%emt 0:00:25]} 36. Kg1 {[%emt 0:00:02]} g5 {[%emt 0:01:04]} 37. Be2 {[%emt 0:06:16]} gxh4 {[%emt 0:00:24]} 38. gxh4 {[%emt 0:00:32]} Ne4 {[%emt 0:00:18]} 39. Bc4 {[%emt 0:02:00]} Bxf2+ {[%emt 0:00:27]} 40. Kg2 {[%emt 0:00:10]} Nd6+ {[%emt 0:00:49]} 41. Bxd5 {[%emt 0:00:07]} Nxc8 {[%emt 0:00:04]} 42. Bxe6 {[%emt 0:00:05]} 1-0

[Event "Commonwealth Open 2019"]
[Site "Delhi"]
[Date "2019.07.02"]
[Round "4.12"]
[White "Mahindrakar Indrajeet"]
[Black "Iniyan, P."]
[Result "1/2-1/2"]
[ECO "B22"]
[WhiteElo "2092"]
[BlackElo "2525"]
[Annotator "ChessBase"]
[PlyCount "112"]
[EventDate "2019.06.30"]
[EventType "swiss"]
[EventCountry "IND"]
[SourceTitle "playchess.com"]
[Source "ChessBase"]
[SourceQuality "1"]
[TimeControl "5400+30"]

1. e4 {[%emt 0:04:00]} c5 {[%emt 0:00:28]} 2. c3 {[%emt 0:03:09]} Nf6 {[%emt 0:00:25]} 3. e5 {[%emt 0:01:26]} Nd5 {[%emt 0:00:06]} 4. d4 {[%emt 0:01:21]} cxd4 {[%emt 0:00:07]} 5. Qxd4 {[%emt 0:00:32]} e6 {[%emt 0:00:13]} 6. Bd3 {[%emt 0:06:55]} Nc6 {[%emt 0:04:32]} 7. Qe4 {[%emt 0:00:21]} d6 {[%emt 0:00:28]} 8. Nf3 {[%emt 0:01:01]} dxe5 {[%emt 0:08:41]} 9. Nxe5 {[%emt 0:00:36]} Nxc3 {[%emt 0:00:06]} 10. Nxc3 {[%emt 0:18:55]} Nxe5 {[%emt 0:00:11]} 11. Bb5+ {[%emt 0:05:10]} Nc6 {[%emt 0:05:03]} 12. Bg5 {[%emt 0:07:19]} f6 {[%emt 0:34:58]} 13. Rd1 {[%emt 0:06:35]} Bd7 {[%emt 0:00:45]} 14. Bf4 {[%emt 0:02:33]} g5 {[%emt 0:04:01]} 15. Be2 {[%emt 0:13:00]} Bc5 {[%emt 0:03:21]} 16. Bh5+ {[%emt 0:01:42]} Kf8 {[%emt 0:00:17]} 17. Bxg5 {[%emt 0:02:13]} fxg5 {[%emt 0:02:51]} 18. Qf3+ {[%emt 0:01:09]} Kg7 {[%emt 0:00:06]} 19. Qf7+ {[%emt 0:02:18]} Kh6 {[%emt 0:00:06]} 20. h4 {[%emt 0:08:17]} Bxf2+ {[%emt 0:04:49]} 21. Kxf2 {[%emt 0:07:29]} g4 {[%emt 0:00:35]} 22. Rxd7 {[%emt 0:02:01]} Rf8 {[%emt 0:00:31]} 23. Rxd8 {[%emt 0:00:54]} Raxd8 {[%emt 0:00:03]} 24. Ke3 {[%emt 0:00:44]} Rxf7 {[%emt 0:00:04]} 25. Bxf7 {[%emt 0:00:02]} Rf8 {[%emt 0:00:08]} 26. Bxe6 {[%emt 0:01:55]} Re8 {[%emt 0:00:04]} 27. Kf4 {[%emt 0:00:21]} Rxe6 {[%emt 0:00:04]} 28. Kxg4 {[%emt 0:00:09]} Rg6+ {[%emt 0:00:12]} 29. Kh3 {[%emt 0:00:20]} Ne5 {[%emt 0:00:05]} 30. Rf1 {[%emt 0:00:44]} Nd3 {[%emt 0:02:32]} 31. Rf7 {[%emt 0:00:49]} Rb6 {[%emt 0:02:56]} 32. b3 {[%emt 0:00:41]} Kg6 {[%emt 0:00:05]} 33. Rf3 {[%emt 0:00:18]} Ne5 {[%emt 0:00:16]} 34. Re3 {[%emt 0:00:14]} Nd7 {[%emt 0:01:12]} 35. g4 {[%emt 0:00:21]} Rd6 {[%emt 0:00:05]} 36. Ne4 {[%emt 0:01:03]} Re6 {[%emt 0:01:44]} 37. Kg3 {[%emt 0:00:22]} h5 {[%emt 0:03:20]} 38. gxh5+ {[%emt 0:00:55]} Kxh5 {[%emt 0:00:18]} 39. Rd3 {[%emt 0:00:22]} Rxe4 {[%emt 0:01:22]} 40. Rxd7 {[%emt 0:00:02]} Rg4+ {[%emt 0:00:08]} 41. Kf3 {[%emt 0:00:19]} Rb4 {[%emt 0:00:03]} 42. Rh7+ {[%emt 0:00:54]} Kg6 43. Re7 {[%emt 0:00:18]} Rb6 {[%emt 0:00:33]} 44. Kf4 {[%emt 0:00:30]} Ra6 {[%emt 0:00:04]} 45. Rxb7 {[%emt 0:01:03]} Rxa2 {[%emt 0:00:06]} 46. Rb4 {[%emt 0:00:33]} Ra3 {[%emt 0:01:34]} 47. Kg4 {[%emt 0:00:53]} Kh6 {[%emt 0:00:54]} 48. Rb5 {[%emt 0:00:18]} Ra1 {[%emt 0:00:36]} 49. b4 {[%emt 0:00:15]} Ra4 {[%emt 0:00:07]} 50. Kf5 {[%emt 0:00:29]} Kh5 {[%emt 0:00:59]} 51. Ke6+ {[%emt 0:00:28]} Kxh4 {[%emt 0:00:05]} 52. Kd6 {[%emt 0:00:31]} Kg4 {[%emt 0:00:13]} 53. Kc5 {[%emt 0:00:39]} Kf5 {[%emt 0:00:06]} 54. Kc6+ {[%emt 0:00:31]} Ke6 {[%emt 0:00:53]} 55. Rb8 {[%emt 0:00:13]} Ra6+ {[%emt 0:00:28]} 56. Kc7 {[%emt 0:00:38]} Ke5 1/2-1/2

[Event "Commonwealth Open 2019"]
[Site "Delhi"]
[Date "2019.07.02"]
[Round "4.14"]
[White "Divya, Deshmukh"]
[Black "Kiran, Manisha Mohanty"]
[Result "1-0"]
[ECO "B63"]
[WhiteElo "2414"]
[BlackElo "2054"]
[Annotator "NA"]
[PlyCount "65"]
[EventDate "2019.06.30"]
[EventType "swiss"]
[EventCountry "IND"]
[SourceTitle "playchess.com"]
[Source "ChessBase"]
[SourceQuality "1"]
[TimeControl "5400+30"]

1. e4 {[%emt 0:00:00]} c5 {[%emt 0:06:46]} 2. Nf3 {[%emt 0:00:00]} d6 {[%emt 0:00:50]} 3. d4 {[%emt 0:00:00]} cxd4 {[%emt 0:00:04]} 4. Nxd4 {[%emt 0:00:00]} Nf6 {[%emt 0:00:14]} 5. Nc3 {[%emt 0:00:00]} Nc6 {[%emt 0:00:09]} 6. Bg5 {[%emt 0:00:01]} e6 {[%emt 0:00:06]} 7. Qd2 {[%emt 0:00:02]} Be7 {[%emt 0:00:06]} 8. O-O-O {[%emt 0:00:06]} Nxd4 {[%emt 0:00:04]} 9. Qxd4 {[%emt 0:00:06]} O-O {[%emt 0:00:25]} 10. h4 {[%emt 0:00:03]} Qa5 {[%emt 0:01:16]} 11. Kb1 {[%emt 0:00:36]} b5 {[%emt 0:10:55]} 12. e5 {[%emt 0:04:39]} dxe5 {[%emt 0:03:23]} 13. Qxe5 {[%emt 0:00:16]} Qb6 {[%emt 0:05:28]} 14. Ne4 {[%emt 0:11:18]} Nxe4 {[%emt 0:12:18]} 15. Bxe7 {[%emt 0:33:39]} Bb7 {[%emt 0:00:35]} 16. Bxf8 {[%emt 0:03:13]} Rxf8 {[%emt 0:00:03]} 17. f3 {[%emt 0:21:53]} Nf2 {[%emt 0:01:11]} 18. Bxb5 {[%emt 0:02:12]} Nxd1 {[%emt 0:08:07]} 19. Rxd1 {[%emt 0:00:30]} Qf2 {[%emt 0:00:47]} 20. Qc7 {[%emt 0:05:36]} Ba8 {[%emt 0:00:12]} 21. a4 {[%emt 0:00:52]} h5 {[%emt 0:00:08]} 22. Rd8 {[%emt 0:00:50]} g6 {[%emt 0:08:10]} 23. Rxf8+ {[%emt 0:00:54]} Kxf8 {[%emt 0:00:05]} 24. Qd8+ {[%emt 0:00:16]} Kg7 {[%emt 0:00:04]} 25. Qxa8 {[%emt 0:00:25]} Qxg2 {[%emt 0:00:06]} 26. Qe4 {[%emt 0:00:24]} f5 {[%emt 0:02:15]} 27. Qxe6 {[%emt 0:00:42]} Qh1+ {[%emt 0:00:06]} 28. Ka2 {[%emt 0:00:06]} Qxh4 {[%emt 0:00:05]} 29. c4 {[%emt 0:00:30]} Qf4 {[%emt 0:00:11]} 30. c5 {[%emt 0:00:45]} h4 {[%emt 0:00:17]} 31. c6 {[%emt 0:00:09]} h3 {[%emt 0:00:13]} 32. Qe7+ {[%emt 0:00:04]} Kh6 {[%emt 0:00:32]} 33. c7 1-0